[Event "WYCC 2018 G14"]
[Site "Halkidiki"]
[Date "2018.10.29"]
[Round "10"]
[White "Hrebenshchykova, Yelyzaveta"]
[Black "Caglar, Sila"]
[Result "1-0"]
[ECO "B43"]
[WhiteElo "1968"]
[BlackElo "2184"]
[Annotator "NA"]
[PlyCount "97"]
[EventDate "2018.10.20"]
[EventType "swiss"]
[EventCountry "GRE"]
[SourceTitle "playchess.com"]
[Source "ChessBase"]
[SourceQuality "1"]
[TimeControl "40/5400+30:1800+30"]

1. e4 {[%emt 0:00:00]} c5 {[%emt 0:00:00]} 2. Nf3 {[%emt 0:00:00]} e6 {[%emt 0:00:00]} 3. d4 {[%emt 0:00:00]} cxd4 {[%emt 0:00:00]} 4. Nxd4 {[%emt 0:00:00]} a6 {[%emt 0:00:00]} 5. Nc3 {[%emt 0:00:05]} Qc7 {[%emt 0:00:00] LiveBook: 7503 Games} 6. Be2 {[%emt 0:00:32]} b5 {[%emt 0:00:05]} 7. O-O {[%emt 0:07:37]} Bb7 {[%emt 0:00:14]} 8. Bf3 {[%emt 0:00:11]} Nc6 {[%emt 0:00:09]} 9. Nxc6 {[%emt 0:00:43]} dxc6 {[%emt 0:00:06]} 10. a4 {[%emt 0:00:06]} Nf6 {[%emt 0:01:46] B43: Sicilian: Kan Variation: 5 Nc3} (10... Bd6 11. axb5 cxb5 12. e5 Bxe5 13. Nxb5 axb5 14. Rxa8+ Bxa8 15. Bxa8 Nf6 16. h3 O-O 17. Bf3 b4 18. Bd2 Rd8 {½-½ (61) Nisipeanu,L (2668)-Ivanchuk,V (2787) Khanty-Mansiysk 2007}) 11. Qe2 {[%emt 0:10:43]} e5 {[%emt 0:00:58]} 12. Be3 {[%emt 0:13:49]} Be7 {[%emt 0:03:49]} 13. g3 $146 {[%emt 0:02:01]} ({Predecessor:} 13. axb5 axb5 14. Rxa8+ Bxa8 15. Nb1 O-O 16. Nd2 Rb8 17. c4 Qa5 18. Rc1 {0-1 (30) Iglesias,J (2366)-Zapata,A (2549) Andorra 2002}) 13... O-O {[%emt 0:01:14]} 14. Bg2 {[%emt 0:00:15]} b4 {[%emt 0:10:50]} 15. Nb1 {[%emt 0:03:29]} Bc8 {[%emt 0:10:17]} 16. f3 {[%emt 0:12:29]} Be6 {[%emt 0:01:15]} 17. Nd2 {[%emt 0:00:12]} Nd7 {[%emt 0:03:01]} 18. b3 {[%emt 0:08:35]} Bc5 {[%emt 0:01:37]} 19. Bxc5 {[%emt 0:04:57]} Nxc5 {[%emt 0:00:20]} 20. Nc4 $11 {[%emt 0:00:05]} Bxc4 {[%emt 0:03:27]} 21. Qxc4 {[%emt 0:00:20]} Qb6 {[%emt 0:00:22]} 22. Kh1 {[%emt 0:03:04]} Ne6 {[%emt 0:03:51]} 23. f4 {[%emt 0:04:28]} Qc5 {[%emt 0:01:59]} 24. Qxc5 {[%emt 0:05:18]} Nxc5 {[%emt 0:00:05]} 25. Rad1 {[%emt 0:00:21]} f6 {[%emt 0:02:50]} 26. Rd6 {[%emt 0:01:15]} Rac8 {[%emt 0:10:52]} 27. Kg1 {[%emt 0:01:05]} Rfd8 {[%emt 0:03:42]} 28. Rfd1 {[%emt 0:00:27]} Rxd6 {[%emt 0:01:07]} 29. Rxd6 {[%emt 0:00:05]} Kf8 {[%emt 0:00:17]} 30. Kf2 {[%emt 0:03:17]} Ke7 {[%emt 0:01:46]} 31. Rd2 {[%emt 0:01:22]} exf4 {[%emt 0:07:42]} 32. gxf4 {[%emt 0:00:07]} g5 {[%emt 0:00:13]} 33. fxg5 {[%emt 0:05:22]} fxg5 {[%emt 0:00:43]} 34. Ke3 {[%emt 0:00:14]} a5 {[%emt 0:00:53]} 35. Bh3 {[%emt 0:09:54]} Rg8 {[%emt 0:10:58]} 36. Bf5 {[%emt 0:00:24]} h5 {[%emt 0:00:09]} 37. Rd4 {[%emt 0:00:57]} g4 {[%emt 0:02:11]} 38. Rc4 {[%emt 0:00:20]} Kd6 {[%emt 0:01:25]} 39. Kf4 {[%emt 0:02:43]} Nb7 {[%emt 0:09:47]} 40. e5+ {[%emt 0:00:00]} Kc7 {[%emt 0:00:00]} 41. Rd4 {[%emt 0:10:27]} Rg7 {[%emt 0:04:45]} 42. e6 {[%emt 0:02:38]} c5 {[%emt 0:01:11]} 43. Rd5 {[%emt 0:05:21]} Re7 {[%emt 0:10:38]} 44. Ke5 {[%emt 0:04:08]} Re8 {[%emt 0:04:39]} 45. Rd7+ {[%emt 0:02:29]} Kb6 {[%emt 0:01:26]} 46. e7 {[%emt 0:01:43]} c4 {[%emt 0:00:29]} 47. Kf6 {[%emt 0:01:13]} Nc5 {[%emt 0:01:10]} 48. Rd8 {[%emt 0:00:28]} cxb3 {[%emt 0:00:49]} 49. cxb3 {[%emt 0:00:10]} 1-0

[Event "WYCC 2018 G14"]
[Site "Halkidiki"]
[Date "2018.10.29"]
[Round "10"]
[White "Randrianarimanana, Alicia"]
[Black "Brunner, Sophia"]
[Result "1-0"]
[ECO "B01"]
[WhiteElo "1947"]
[BlackElo "1812"]
[Annotator "NA"]
[PlyCount "67"]
[EventDate "2018.10.20"]
[EventType "swiss"]
[EventCountry "GRE"]
[SourceTitle "playchess.com"]
[Source "ChessBase"]
[SourceQuality "1"]
[TimeControl "40/5400+30:1800+30"]

1. e4 {[%emt 0:00:00]} d5 {[%emt 0:00:00]} 2. exd5 {[%emt 0:00:00]} Nf6 {[%emt 0:00:00]} 3. Nf3 {[%emt 0:00:08]} Nxd5 {[%emt 0:00:13]} 4. d4 {[%emt 0:00:34]} Bf5 {[%emt 0:01:53]} 5. c4 {[%emt 0:00:35]} Nb6 {[%emt 0:04:29]} 6. Nc3 {[%emt 0:00:25]} e6 {[%emt 0:02:29]} 7. a3 {[%emt 0:07:32]} N8d7 {[%emt 0:13:57]} 8. c5 {[%emt 0:05:07]} Nc8 {[%emt 0:06:10]} 9. Bf4 {[%emt 0:19:12]} c6 {[%emt 0:08:11]} 10. Qb3 {[%emt 0:19:54]} b6 {[%emt 0:01:26]} 11. Ba6 {[%emt 0:01:08]} Bxc5 {[%emt 0:17:16]} 12. Bb7 {[%emt 0:06:32]} Bd6 {[%emt 0:19:17]} 13. Bxa8 {[%emt 0:01:34]} Bxf4 {[%emt 0:00:08]} 14. Bxc6 {[%emt 0:00:19]} O-O {[%emt 0:00:39]} 15. Be4 {[%emt 0:12:08]} Nd6 {[%emt 0:03:33]} 16. Bxf5 {[%emt 0:00:08]} Nxf5 {[%emt 0:00:07]} 17. O-O {[%emt 0:00:49]} Nf6 {[%emt 0:01:12]} 18. Ne2 {[%emt 0:01:38]} Bh6 {[%emt 0:01:16]} 19. h3 {[%emt 0:01:37]} Nd5 {[%emt 0:01:16]} 20. Kh1 {[%emt 0:06:28]} Nd6 {[%emt 0:05:41]} 21. Rad1 {[%emt 0:00:52]} Ne4 {[%emt 0:02:17]} 22. Nc3 {[%emt 0:00:52]} Nexc3 {[%emt 0:03:09]} 23. bxc3 {[%emt 0:00:05]} Qd6 {[%emt 0:00:32]} 24. c4 {[%emt 0:03:04]} Nf4 {[%emt 0:01:15]} 25. Rfe1 {[%emt 0:01:19]} f5 {[%emt 0:02:09]} 26. Qb4 {[%emt 0:03:15]} Qc6 {[%emt 0:01:57]} 27. d5 {[%emt 0:00:04]} Qb7 {[%emt 0:00:58]} 28. dxe6 {[%emt 0:00:44]} Re8 {[%emt 0:01:55]} 29. Qb5 {[%emt 0:01:13]} Qc8 {[%emt 0:00:31]} 30. Qxf5 {[%emt 0:00:37]} Nxe6 {[%emt 0:00:24]} 31. Qd5 {[%emt 0:02:18]} Bf4 {[%emt 0:00:37]} 32. Nd4 {[%emt 0:00:21]} Kf7 {[%emt 0:00:08]} 33. Qf5+ {[%emt 0:00:37]} Kg8 {[%emt 0:00:07]} 34. Nxe6 {[%emt 0:00:07]} 1-0

[Event "WYCC 2018 G14"]
[Site "Halkidiki"]
[Date "2018.10.29"]
[Round "10"]
[White "Baiburina, Kamilla"]
[Black "Vuong, Quynh Anh"]
[Result "0-1"]
[ECO "B11"]
[WhiteElo "1907"]
[BlackElo "1747"]
[Annotator "NA"]
[PlyCount "90"]
[EventDate "2018.10.20"]
[EventType "swiss"]
[EventCountry "GRE"]
[SourceTitle "playchess.com"]
[Source "ChessBase"]
[SourceQuality "1"]
[TimeControl "40/5400+30:1800+30"]

1. e4 c6 2. Nc3 d5 3. Nf3 Bg4 4. h3 Bxf3 5. Qxf3 e6 6. d3 Bb4 7. Bd2 {B11: Caro-Kann: Two Knights Variation} Ne7 8. Qg3 $146 ({Predecessor:} 8. a3 Ba5 9. g3 Nd7 10. Bg2 O-O 11. O-O d4 12. Nb1 Bxd2 13. Nxd2 b5 14. Qe2 Qc7 {1-0 (31) Can,E (2464)-Steingrimsson,H (2540) Beijing 2008}) 8... Ng6 9. Be2 d4 10. Nd1 Bxd2+ 11. Kxd2 e5 12. Ke1 Nd7 13. Kf1 O-O 14. Kg1 Qa5 15. c3 c5 16. h4 Nf4 17. Bf1 Nf6 18. Qf3 h5 19. g3 Ng6 20. Bh3 $15 Rad8 21. c4 Qd2 22. a3 a6 23. Bf1 Rb8 24. Qe2 Qxe2 25. Bxe2 b5 26. Rc1 Rfc8 27. Kg2 bxc4 28. Rxc4 Rb3 29. Rf1 Ne8 30. f4 Nd6 31. Ra4 c4 32. Rxa6 cxd3 33. Bxd3 Rxd3 34. Rxd6 exf4 35. gxf4 Nxh4+ 36. Kg1 Nf3+ 37. Kg2 Rc2+ 38. Rf2 Ne1+ 39. Kf1 Rxd1 40. Rxc2 Nxc2+ 41. Ke2 Rg1 42. Kd3 Ne1+ 43. Ke2 h4 44. Kf2 Nf3 45. Rd5 g6 0-1

[Event "WYCC 2018 G14"]
[Site "Halkidiki"]
[Date "2018.10.29"]
[Round "10"]
[White "Nguyen, Thien Ngan"]
[Black "Dimitrijevic, Andjela"]
[Result "1-0"]
[ECO "B59"]
[WhiteElo "1888"]
[BlackElo "1744"]
[Annotator "NA"]
[PlyCount "141"]
[EventDate "2018.10.20"]
[EventType "swiss"]
[EventCountry "GRE"]
[SourceTitle "playchess.com"]
[Source "ChessBase"]
[SourceQuality "1"]
[TimeControl "40/5400+30:1800+30"]

1. e4 {[%emt 0:00:00]} c5 {[%emt 0:00:00]} 2. Nf3 {[%emt 0:00:00]} d6 {[%emt 0:00:00]} 3. d4 {[%emt 0:00:00]} cxd4 {[%emt 0:00:28]} 4. Nxd4 {[%emt 0:00:00]} Nf6 {[%emt 0:00:15]} 5. Nc3 {[%emt 0:00:00]} Nc6 {[%emt 0:00:15]} 6. Be2 {[%emt 0:00:03]} e5 {[%emt 0:01:26]} 7. Nb3 {[%emt 0:02:53]} Be7 {[%emt 0:02:00]} 8. Bg5 {[%emt 0:01:04]} O-O {[%emt 0:03:04]} 9. Bxf6 {[%emt 0:01:45]} Bxf6 {[%emt 0:00:57]} 10. O-O {[%emt 0:01:20]} Be6 {[%emt 0:21:27]} 11. Nd5 {[%emt 0:04:31]} Bg5 {[%emt 0:03:57]} 12. c3 {[%emt 0:03:23]} Ne7 {[%emt 0:05:56]} 13. c4 {[%emt 0:07:29]} Nxd5 {[%emt 0:13:27]} 14. exd5 {[%emt 0:02:50]} Bd7 {[%emt 0:04:16]} 15. a4 {[%emt 0:06:28]} b6 {[%emt 0:06:59]} 16. Ra3 {[%emt 0:09:57]} a5 {[%emt 0:07:31]} 17. Na1 {[%emt 0:03:42]} f5 {[%emt 0:01:43]} 18. Nc2 {[%emt 0:02:05]} Qe8 {[%emt 0:06:18]} 19. Qa1 {[%emt 0:09:37]} g6 {[%emt 0:05:43]} 20. Rd1 {[%emt 0:06:23]} Bh6 {[%emt 0:01:40]} 21. Rb1 {[%emt 0:08:46]} Bd2 {[%emt 0:11:46]} 22. Rd3 {[%emt 0:04:18]} Bh6 {[%emt 0:00:17]} 23. b3 {[%emt 0:03:07]} Bg7 {[%emt 0:01:04]} 24. Qa3 {[%emt 0:03:19]} Qe7 {[%emt 0:00:43]} 25. b4 {[%emt 0:03:01]} Rfb8 {[%emt 0:00:32]} 26. Rdb3 {[%emt 0:02:07]} axb4 {[%emt 0:00:34]} 27. Rxb4 {[%emt 0:00:07]} Qd8 {[%emt 0:00:29]} 28. Qb3 {[%emt 0:01:39]} Bf8 {[%emt 0:00:10]} 29. Na3 {[%emt 0:04:16]} Ra5 {[%emt 0:00:37]} 30. Nb5 {[%emt 0:00:53]} Be8 {[%emt 0:00:42]} 31. Nc3 {[%emt 0:03:22]} Qc7 {[%emt 0:00:31]} 32. g3 {[%emt 0:04:18]} Kh8 {[%emt 0:00:29]} 33. Rxb6 {[%emt 0:01:48]} Rxb6 {[%emt 0:00:29]} 34. Qxb6 {[%emt 0:00:03]} Qxb6 {[%emt 0:00:30]} 35. Rxb6 {[%emt 0:00:02]} Bxa4 {[%emt 0:00:26]} 36. Nb5 {[%emt 0:00:36]} Bxb5 {[%emt 0:00:34]} 37. cxb5 {[%emt 0:00:00]} Ra8 {[%emt 0:00:29]} 38. Rc6 {[%emt 0:00:18]} Rb8 {[%emt 0:00:34]} 39. b6 {[%emt 0:00:18]} Ra8 {[%emt 0:00:23]} 40. b7 {[%emt 0:00:00]} Ra1+ {[%emt 0:00:00]} 41. Kg2 {[%emt 0:01:24]} Rb1 {[%emt 0:02:50]} 42. Ba6 {[%emt 0:00:27]} Kg8 {[%emt 0:03:24]} 43. Rc8 {[%emt 0:00:12]} Kg7 {[%emt 0:00:29]} 44. b8=Q {[%emt 0:00:07]} Rxb8 {[%emt 0:00:07]} 45. Rxb8 {[%emt 0:00:06]} h6 {[%emt 0:03:50]} 46. Re8 {[%emt 0:00:23]} Kf7 {[%emt 0:00:51]} 47. Re6 {[%emt 0:00:09]} Be7 {[%emt 0:00:42]} 48. Kf3 {[%emt 0:00:21]} e4+ {[%emt 0:01:00]} 49. Ke2 {[%emt 0:00:08]} Bf8 {[%emt 0:00:27]} 50. Kd2 {[%emt 0:00:26]} Be7 {[%emt 0:00:43]} 51. Kc2 {[%emt 0:00:05]} h5 {[%emt 0:00:13]} 52. Kb3 {[%emt 0:00:15]} g5 {[%emt 0:00:29]} 53. Kc4 {[%emt 0:00:35]} Ke8 {[%emt 0:00:38]} 54. Kb5 {[%emt 0:00:25]} Kd7 {[%emt 0:00:30]} 55. Bc8+ {[%emt 0:00:06]} Kd8 {[%emt 0:00:13]} 56. Kc6 {[%emt 0:00:14]} h4 {[%emt 0:00:48]} 57. Rxe7 {[%emt 0:00:23]} Kxe7 {[%emt 0:00:08]} 58. Bxf5 {[%emt 0:00:06]} hxg3 {[%emt 0:00:13]} 59. hxg3 {[%emt 0:00:06]} e3 {[%emt 0:00:06]} 60. fxe3 {[%emt 0:00:04]} g4 {[%emt 0:00:13]} 61. Bxg4 {[%emt 0:00:05]} Kd8 {[%emt 0:00:10]} 62. Kxd6 {[%emt 0:00:05]} Ke8 {[%emt 0:00:08]} 63. Kc7 {[%emt 0:00:06]} Ke7 {[%emt 0:00:11]} 64. d6+ {[%emt 0:00:05]} Ke8 {[%emt 0:00:07]} 65. d7+ {[%emt 0:00:05]} Ke7 {[%emt 0:00:03]} 66. d8=Q+ {[%emt 0:00:08]} Kf7 {[%emt 0:00:07]} 67. Qd6 {[%emt 0:00:08]} Kg7 {[%emt 0:00:13]} 68. Bf5 {[%emt 0:00:35]} Kg8 {[%emt 0:00:23]} 69. Qg6+ {[%emt 0:00:06]} Kf8 {[%emt 0:00:17]} 70. Be6 {[%emt 0:00:05]} Ke7 {[%emt 0:00:06]} 71. Qf7# {[%emt 0:00:04]} 1-0

[Event "WYCC 2018 G14"]
[Site "Halkidiki"]
[Date "2018.10.29"]
[Round "10"]
[White "Lomaia, Diana"]
[Black "Djordjevic, Nevena"]
[Result "1/2-1/2"]
[ECO "B44"]
[WhiteElo "1876"]
[BlackElo "1704"]
[Annotator "NA"]
[PlyCount "110"]
[EventDate "2018.10.20"]
[EventType "swiss"]
[EventCountry "GRE"]
[SourceTitle "playchess.com"]
[Source "ChessBase"]
[SourceQuality "1"]
[TimeControl "40/5400+30:1800+30"]

1. e4 {[%emt 0:00:00]} c5 {[%emt 0:00:00]} 2. Nf3 {[%emt 0:00:00]} e6 {[%emt 0:00:00]} 3. d4 {[%emt 0:00:02]} cxd4 {[%emt 0:00:00]} 4. Nxd4 {[%emt 0:00:06]} Nc6 {[%emt 0:00:00]} 5. Nb5 {[%emt 0:00:43]} d6 {[%emt 0:00:00]} 6. c4 {[%emt 0:00:15]} Nf6 {[%emt 0:00:09]} 7. N1c3 {[%emt 0:00:19]} a6 {[%emt 0:00:12]} 8. Na3 {[%emt 0:00:23]} Qa5 {[%emt 0:01:03]} 9. Bd3 {[%emt 0:17:40]} Ne5 {[%emt 0:00:43]} 10. f4 {[%emt 0:20:26]} Nxd3+ {[%emt 0:06:27]} 11. Qxd3 {[%emt 0:00:10]} d5 {[%emt 0:23:39]} 12. e5 {[%emt 0:08:35]} Ne4 {[%emt 0:04:31]} 13. Nc2 {[%emt 0:12:35]} Nxc3 {[%emt 0:03:21]} 14. bxc3 {[%emt 0:01:26]} dxc4 {[%emt 0:01:38]} 15. Qxc4 Bd7 {[%emt 0:03:00]} 16. Bd2 {[%emt 0:09:59]} Rc8 {[%emt 0:04:12]} 17. Qb3 {[%emt 0:03:16]} Bc6 {[%emt 0:06:23]} 18. O-O {[%emt 0:04:40]} Qd5 {[%emt 0:07:05]} 19. Qxd5 {[%emt 0:00:29]} Bxd5 {[%emt 0:00:05]} 20. h3 {[%emt 0:08:39]} Bc5+ 21. Kh2 Ke7 {[%emt 0:09:43]} 22. Rfc1 {[%emt 0:05:30]} Rhd8 {[%emt 0:02:16]} 23. Nd4 {[%emt 0:02:53]} Be4 {[%emt 0:02:48]} 24. Re1 {[%emt 0:02:21]} Bxd4 {[%emt 0:01:04]} 25. cxd4 {[%emt 0:00:12]} Rxd4 {[%emt 0:00:41]} 26. Be3 {[%emt 0:00:12]} Ra4 {[%emt 0:04:14]} 27. Re2 {[%emt 0:00:46]} Rc3 {[%emt 0:01:26]} 28. a3 {[%emt 0:01:20]} Ke8 {[%emt 0:03:22]} 29. Bc1 {[%emt 0:00:34]} b5 {[%emt 0:02:25]} 30. Bb2 {[%emt 0:00:14]} Rcc4 {[%emt 0:02:18]} 31. Rc1 {[%emt 0:00:27]} Bd5 {[%emt 0:02:11]} 32. Rxc4 {[%emt 0:00:41]} Rxc4 {[%emt 0:01:03]} 33. g3 {[%emt 0:00:57]} Kd7 34. Rd2 {[%emt 0:00:06]} Kc6 {[%emt 0:01:30]} 35. Kg1 {[%emt 0:00:05]} a5 36. Kf2 {[%emt 0:00:02]} b4 {[%emt 0:03:20]} 37. axb4 {[%emt 0:00:38]} Rxb4 {[%emt 0:03:22]} 38. Bc3 Rb3 {[%emt 0:00:29]} 39. Bxa5 {[%emt 0:02:07]} Rf3+ 40. Kg1 Rxg3+ {[%emt 0:00:00]} 41. Kh2 {[%emt 0:00:56]} Rf3 {[%emt 0:02:44]} 42. Rc2+ {[%emt 0:05:22]} Kb5 {[%emt 0:00:45]} 43. Bd2 {[%emt 0:01:19]} Rf2+ {[%emt 0:02:08]} 44. Kg3 {[%emt 0:01:27]} Rg2+ {[%emt 0:00:47]} 45. Kh4 {[%emt 0:00:03]} h6 {[%emt 0:03:19]} 46. Rb2+ {[%emt 0:02:00]} Kc4 {[%emt 0:00:36]} 47. Bc1 {[%emt 0:00:13]} Rg1 {[%emt 0:02:35]} 48. Be3 {[%emt 0:00:44]} Rf1 {[%emt 0:02:19]} 49. Rf2 {[%emt 0:05:00]} Re1 {[%emt 0:01:50]} 50. Bd2 {[%emt 0:01:25]} Rd1 {[%emt 0:00:37]} 51. Ba5 {[%emt 0:01:02]} Kd3 {[%emt 0:02:14]} 52. Bb4 {[%emt 0:01:52]} Ke4 {[%emt 0:02:29]} 53. Rg2 {[%emt 0:05:00]} g6 {[%emt 0:04:23]} 54. Rf2 {[%emt 0:03:40]} Rc1 {[%emt 0:04:31]} 55. Bf8 {[%emt 0:02:00]} h5 {[%emt 0:01:58]} 1/2-1/2

[Event "WYCC 2018 G14"]
[Site "Halkidiki"]
[Date "2018.10.29"]
[Round "10"]
[White "Kasaeva, Sofiia"]
[Black "Alimova, Sevinch"]
[Result "1-0"]
[ECO "B32"]
[WhiteElo "1874"]
[BlackElo "1596"]
[Annotator "NA"]
[PlyCount "119"]
[EventDate "2018.10.20"]
[EventType "swiss"]
[EventCountry "GRE"]
[SourceTitle "playchess.com"]
[Source "ChessBase"]
[SourceQuality "1"]
[TimeControl "40/5400+30:1800+30"]

1. e4 {[%emt 0:00:00]} c5 {[%emt 0:00:00]} 2. Nf3 {[%emt 0:00:00]} Nc6 {[%emt 0:00:00]} 3. d4 {[%emt 0:00:00]} cxd4 {[%emt 0:00:00]} 4. Nxd4 {[%emt 0:00:00]} e5 {[%emt 0:00:22]} 5. Nb5 {[%emt 0:00:24]} a6 {[%emt 0:00:36]} 6. Nd6+ {[%emt 0:00:36]} Bxd6 {[%emt 0:00:28]} 7. Qxd6 {[%emt 0:00:05]} Qf6 {[%emt 0:00:38]} 8. Qd2 {[%emt 0:00:17]} Nge7 {[%emt 0:04:35]} 9. c4 {[%emt 0:04:51]} Qg6 {[%emt 0:03:50]} 10. f3 {[%emt 0:00:50]} O-O {[%emt 0:00:41]} 11. Bd3 {[%emt 0:01:20]} d6 {[%emt 0:01:25]} 12. O-O {[%emt 0:01:20]} f5 {[%emt 0:05:25]} 13. exf5 {[%emt 0:20:43]} Bxf5 {[%emt 0:00:30]} 14. Bxf5 {[%emt 0:01:30]} Nxf5 {[%emt 0:04:31]} 15. Nc3 {[%emt 0:01:33]} Nfd4 {[%emt 0:06:12]} 16. Qd1 {[%emt 0:06:48]} Rf7 {[%emt 0:06:36]} 17. Bd2 {[%emt 0:03:02]} Raf8 {[%emt 0:05:14]} 18. Kh1 {[%emt 0:02:54]} Nf5 {[%emt 0:14:41]} 19. Qe1 {[%emt 0:08:11]} Ncd4 {[%emt 0:03:12]} 20. Rc1 {[%emt 0:01:20]} Ne6 {[%emt 0:13:43]} 21. Nd5 {[%emt 0:05:55]} Nc5 {[%emt 0:08:05]} 22. Rb1 {[%emt 0:15:21]} Nd4 {[%emt 0:06:58]} 23. Qh4 {[%emt 0:05:22]} Nf5 {[%emt 0:03:32]} 24. Qe1 {[%emt 0:05:16]} Nd3 {[%emt 0:02:05]} 25. Qe2 {[%emt 0:01:26]} Nh4 {[%emt 0:04:56]} 26. Be3 {[%emt 0:05:36]} Kh8 {[%emt 0:02:51]} 27. Nc3 {[%emt 0:03:50]} Nf4 {[%emt 0:01:01]} 28. Bxf4 {[%emt 0:00:19]} exf4 {[%emt 0:00:29]} 29. Nd5 {[%emt 0:01:19]} Qh6 {[%emt 0:01:19]} 30. Kg1 {[%emt 0:01:07]} Nf5 {[%emt 0:00:12]} 31. Qf2 {[%emt 0:00:59]} Re8 {[%emt 0:00:32]} 32. Rfe1 {[%emt 0:00:24]} Rff8 {[%emt 0:00:21]} 33. Rxe8 {[%emt 0:01:11]} Rxe8 {[%emt 0:00:03]} 34. Re1 {[%emt 0:00:08]} Qg6 {[%emt 0:00:23]} 35. Nxf4 {[%emt 0:00:24]} Qf7 {[%emt 0:00:56]} 36. Rxe8+ {[%emt 0:00:18]} Qxe8 {[%emt 0:00:04]} 37. Qe2 {[%emt 0:00:50]} Qxe2 {[%emt 0:00:29]} 38. Nxe2 {[%emt 0:00:03]} Kg8 {[%emt 0:00:50]} 39. Kf2 {[%emt 0:00:34]} Kf7 {[%emt 0:00:09]} 40. g4 {[%emt 0:00:00]} Ne7 {[%emt 0:00:00]} 41. Nc3 {[%emt 0:06:38]} Ke6 {[%emt 0:01:04]} 42. Ke3 {[%emt 0:00:54]} Nc6 {[%emt 0:00:38]} 43. f4 {[%emt 0:00:37]} g6 {[%emt 0:02:12]} 44. Nd5 {[%emt 0:02:52]} a5 {[%emt 0:01:16]} 45. b3 {[%emt 0:02:16]} Nd8 {[%emt 0:01:02]} 46. Ke4 {[%emt 0:00:52]} Nf7 {[%emt 0:01:22]} 47. f5+ gxf5+ {[%emt 0:00:30]} 48. gxf5+ {[%emt 0:00:16]} Kd7 {[%emt 0:00:06]} 49. Nf6+ {[%emt 0:00:06]} Ke7 {[%emt 0:00:09]} 50. Nxh7 {[%emt 0:00:21]} Ne5 {[%emt 0:00:23]} 51. h4 {[%emt 0:02:17]} Ng4 {[%emt 0:00:28]} 52. Kf4 {[%emt 0:00:34]} Nh6 {[%emt 0:00:11]} 53. Kg5 {[%emt 0:00:50]} Nf7+ {[%emt 0:00:15]} 54. Kg6 {[%emt 0:00:32]} Ne5+ {[%emt 0:01:11]} 55. Kg7 {[%emt 0:00:12]} Nf7 {[%emt 0:00:19]} 56. f6+ {[%emt 0:00:14]} Ke8 {[%emt 0:00:09]} 57. Ng5 {[%emt 0:00:11]} Ne5 {[%emt 0:00:19]} 58. f7+ {[%emt 0:00:06]} Nxf7 {[%emt 0:00:04]} 59. Nxf7 {[%emt 0:00:04]} Ke7 {[%emt 0:00:04]} 60. h5 {[%emt 0:00:08]} 1-0

[Event "WYCC 2018 G14"]
[Site "Halkidiki"]
[Date "2018.10.29"]
[Round "10"]
[White "Behzad Nazif, Parva"]
[Black "Mironenko, Galina"]
[Result "1-0"]
[ECO "E46"]
[WhiteElo "1859"]
[BlackElo "2053"]
[Annotator "NA"]
[PlyCount "85"]
[EventDate "2018.10.20"]
[EventType "swiss"]
[EventCountry "GRE"]
[SourceTitle "playchess.com"]
[Source "ChessBase"]
[SourceQuality "1"]
[TimeControl "40/5400+30:1800+30"]

1. d4 {[%emt 0:00:00]} Nf6 {[%emt 0:00:00]} 2. c4 {[%emt 0:00:00]} e6 {[%emt 0:00:00]} 3. Nc3 {[%emt 0:00:00]} Bb4 {[%emt 0:00:00]} 4. e3 {[%emt 0:00:00]} O-O {[%emt 0:00:00]} 5. Nge2 {[%emt 0:00:00]} c6 {[%emt 0:00:00] E46: Nimzo-Indian: Rubinstein: 4 e3 0-0 5 Ne2 without early Bd3} (5... Re8 6. a3 Bf8 7. d5 d6 8. g3 exd5 9. cxd5 c5 10. Bg2 Nbd7 11. O-O c4 12. Nd4 Nc5 13. Qe2 Nd3 14. b3 Nxc1 15. Rfxc1 cxb3 {½-½ (74) Caruana,F (2822)-So,W (2780) Saint Louis 2018}) 6. a3 {[%emt 0:00:07] LiveBook: 286 Games} Ba5 {[%emt 0:00:04]} 7. b4 {[%emt 0:00:07]} Bc7 {[%emt 0:00:05]} 8. e4 {[%emt 0:00:24]} d6 {[%emt 0:00:09]} 9. Ng3 {[%emt 0:03:02]} a5 {[%emt 0:00:32]} 10. b5 {[%emt 0:02:44]} e5 {[%emt 0:05:05]} 11. Be2 {[%emt 0:04:45]} Re8 $146 {[%emt 0:06:10]} ({Predecessor:} 11... exd4 12. Qxd4 Nbd7 13. Bb2 {½-½ (42) Oparin,G (2565)-Padmini,R (2427) Gibraltar 2016}) 12. O-O {[%emt 0:02:59]} Nbd7 {[%emt 0:07:35]} 13. Be3 {[%emt 0:01:50]} Nf8 {[%emt 0:14:17]} 14. Rb1 {[%emt 0:12:32]} exd4 {[%emt 0:13:00]} 15. Bxd4 {[%emt 0:01:47]} N8d7 {[%emt 0:03:25]} 16. bxc6 {[%emt 0:05:05]} bxc6 {[%emt 0:00:33]} 17. Qa4 $16 {[%emt 0:00:20]} c5 {[%emt 0:12:23]} 18. Be3 {[%emt 0:00:14]} Ne5 {[%emt 0:00:17]} 19. Rfd1 {[%emt 0:01:33]} Bd7 {[%emt 0:00:47]} 20. Qc2 {[%emt 0:01:25]} Nfg4 {[%emt 0:04:47]} 21. Bc1 {[%emt 0:05:26]} Nf6 {[%emt 0:12:02]} 22. h3 {[%emt 0:02:41]} a4 {[%emt 0:03:30]} 23. Nb5 {[%emt 0:04:17]} Bc6 {[%emt 0:03:20]} 24. Be3 {[%emt 0:04:37]} Ned7 {[%emt 0:01:14]} 25. Nxd6 {[%emt 0:09:38]} Bxd6 {[%emt 0:03:11]} 26. Rxd6 {[%emt 0:00:06]} Bxe4 {[%emt 0:00:44]} 27. Nxe4 {[%emt 0:01:37]} Nxe4 {[%emt 0:00:16]} 28. Rdd1 {[%emt 0:01:25]} Qc7 {[%emt 0:01:39]} 29. Bf3 {[%emt 0:00:40]} Ndf6 {[%emt 0:00:43]} 30. Rb5 {[%emt 0:01:46]} Qe5 {[%emt 0:01:45]} 31. Re1 {[%emt 0:06:13]} Qc7 {[%emt 0:04:02]} 32. Reb1 {[%emt 0:05:32]} Qe5 {[%emt 0:01:07]} 33. Qb2 {[%emt 0:01:45]} Qe6 {[%emt 0:02:24]} 34. Rc1 {[%emt 0:05:23]} Rac8 {[%emt 0:00:53]} 35. Qc2 {[%emt 0:01:08]} Qa6 {[%emt 0:00:36]} 36. Qb1 {[%emt 0:04:48]} Qd6 {[%emt 0:00:38]} 37. Ra5 {[%emt 0:01:48]} Rb8 {[%emt 0:00:40]} 38. Qc2 {[%emt 0:01:02]} Qe5 {[%emt 0:00:28]} 39. Qxa4 {[%emt 0:01:32]} Rb2 {[%emt 0:00:33]} 40. Bxe4 {[%emt 0:00:00]} Nxe4 {[%emt 0:00:00]} 41. Bd4 {[%emt 0:03:24]} Ng3 {[%emt 0:13:03]} 42. Bxe5 {[%emt 0:00:31]} Ne2+ {[%emt 0:00:06]} 43. Kh2 {[%emt 0:00:13]} 1-0